[Event "8th Gibraltar U16-Junior 2018"]
[Site "Caleta"]
[Date "2018.08.20"]
[Round "6"]
[White "Cuellar Montes, Alejandro"]
[Black "Ifalore, Michael"]
[Result "0-1"]
[ECO "E55"]
[WhiteElo "2074"]
[BlackElo "1881"]
[Annotator "NA RC"]
[PlyCount "192"]
[EventDate "2018.08.17"]
[EventType "swiss"]
[EventCountry "GGB"]
[SourceTitle "playchess.com"]
[Source "ChessBase"]
[SourceQuality "1"]
[TimeControl "6600+10"]

{[%evp 18,187,34,27,38,16,27,24,28,-28,17,0,36,-10,25,18,15,14,3,-10,0,-96,-17,-117,-99,-117,-151,-147,-97,-240,-220,-269,-97,-141,-84,-264,-122,-142,-144,-1644,-1567,32767,32767,32767,32767,-29994,-29989,-29989,-29987,-29993,-1226,-1165,-123,-5731,-358,-321,-331,-324,-376,32767,32767,32767,32767,-394,-397,-421,-388,-445,-417,-503,-552,-509,-586,-539,-686,-12839,-12837,-932,-517,-580,-653,-564,-562,-518,-430,-541,-575,-585,-550,-526,-520,-874,-455,-427,-466,-453,-405,-423,-497,-599,-687,-774,-531,-503,-517,-584,-456,-493,-423,-684,-711,-568,-855,-722,-803,-741,-1000,-1034,-1671,-5057,-4937,-817,-830,-818,-291,-273,-113,-102,-104,-102,-104,-102,-98,-5057,-6249,-5065,-12846,-29963,-29979,-29994,-29965,-29980,-29977,-12851,-12593,-29975,-29978,-29981,-29982,-29978,-29973,-29983,-29969,-6379,-29978,-29979,-29982,-29980,-29979,-29986,-29987,-29987,-29988,-29988,-29988,-29988,-29989,-29989,-29990,-29991,-29989,-29989]} 1. d4 {[%emt 0:00:00]} Nf6 {[%emt 0:00:00]} 2. c4 {[%emt 0:00:02]} e6 {[%emt 0:00:00]} 3. Nc3 {[%emt 0:00:05]} Bb4 {[%emt 0:00:02]} 4. e3 {[%emt 0:00:08]} O-O {[%emt 0:00:04]} 5. Bd3 {[%emt 0:00:07]} d5 {[%emt 0:00:03]} 6. Nf3 {[%emt 0:00:07]} c5 {[%emt 0:00:04]} 7. O-O {[%emt 0:00:13]} dxc4 {[%emt 0:00:02]} 8. Bxc4 {[%emt 0:00:08]} Nbd7 {[%emt 0:00:08]} 9. a3 {[%emt 0:01:34]} cxd4 {[%emt 0:03:47] LiveBook: 194 Games} 10. axb4 {[%emt 0:00:52]} dxc3 {[%emt 0:00:07]} 11. bxc3 {[%emt 0:00:12]} Qc7 {[%emt 0:00:07]} 12. Qb3 {[%emt 0:06:57]} b6 {[%emt 0:03:17] E55: Nimzo-Indian: Rubinstein: Main Line: 7...dxc4 8 Bxc4 Nbd7} 13. Ba6 $146 {[%emt 0:35:55]} ({Predecessor:} 13. Be2 $14 Bb7 14. Rd1 Ng4 15. h3 Nge5 16. Nxe5 Nxe5 17. c4 a5 {½-½ (17) Piorun,K (2529)-Edouard,R (2680) Deizisau 2013}) 13... Ne5 {[%emt 0:27:35]} 14. Nxe5 {[%emt 0:28:08]} Qxe5 {[%emt 0:00:06]} 15. f4 {[%emt 0:00:53]} Qe4 {[%emt 0:03:50]} 16. Be2 {[%emt 0:01:43]} Qg6 {[%emt 0:05:44]} 17. Bf3 {[%emt 0:00:51]} Ne4 {[%emt 0:00:19]} 18. Rd1 {[%emt 0:03:04]} Bb7 {[%emt 0:00:33]} 19. Rd7 {[%emt 0:01:19]} (19. c4 $11) 19... Bd5 {[%emt 0:00:56]} (19... Nc5 $17 20. bxc5 Bxf3) 20. c4 {[%emt 0:05:46]} (20. Qb1 $11) 20... Nd2 {[%emt 0:00:04]} 21. Bxd2 {[%emt 0:01:46]} Bxf3 {[%emt 0:00:06]} 22. g3 {[%emt 0:02:37]} Rad8 {[%emt 0:00:51]} 23. Raxa7 {[%emt 0:01:25] [#]} (23. Rd4 $17 {keeps fighting.}) 23... Bc6 $1 {[%emt 0:00:39]} 24. Rd4 {[%emt 0:02:46]} Rxd4 $2 {[%emt 0:00:12]} (24... Qg4 $19 {has better winning chances.} 25. b5 Qf3 26. bxc6 Rxd4) 25. exd4 {[%emt 0:00:09]} Qe4 {[%emt 0:00:07]} 26. Kf1 $2 {[%emt 0:01:25]} (26. d5 $17 exd5 27. Qe3 Qxc4 28. Qc3) 26... Qxd4 {[%emt 0:00:18]} (26... Qg2+ $19 27. Ke1 b5) 27. Be3 {[%emt 0:01:35]} Qe4 {[%emt 0:00:44]} 28. Bf2 $2 {[%emt 0:03:38]} (28. Bxb6 $17 Rb8 29. b5 Qh1+ 30. Ke2 Qxh2+ 31. Ke1 Rxb6 {[#]} 32. bxc6 $1 {[%mdl 512]} Qg1+ 33. Kd2) 28... Rd8 {[%emt 0:00:28]} 29. Rc7 {[%emt 0:04:44]} Qh1+ {[%emt 0:00:10]} 30. Ke2 {[%emt 0:00:16]} Bf3+ {[%emt 0:00:07]} 31. Ke3 {[%emt 0:01:01]} Be4 {[%emt 0:00:05]} 32. Ke2 {[%emt 0:00:24]} h6 {[%emt 0:00:41]} 33. Ra7 {[%emt 0:01:17] [#]} Rd1 {[%emt 0:00:08]} (33... Bf3+ $142 $1 {[%mdl 512]} 34. Ke3 (34. Qxf3 Qd1+) 34... Bg4 35. Rd7 Rxd7 36. Qd3 Qf3+ 37. Kd2 Rxd3+ 38. Kc2 Qe2+ 39. Kc1 Rd1#) 34. Ra3 {[%emt 0:01:33]} Qf1+ $2 {[%emt 0:01:10]} (34... Rb1 $19 {is more deadly.} 35. Qxb1 Qxb1) 35. Ke3 {[%emt 0:00:00]} Rd3+ $2 {[%emt 0:00:13]} (35... Bf5 36. Qc3 Rc1) 36. Qxd3 {[%emt 0:00:08]} Bxd3 {[%emt 0:00:05]} 37. Rxd3 {[%emt 0:00:02]} Qc1+ {[%emt 0:00:06]} 38. Rd2 {[%emt 0:02:08]} Qxc4 {[%emt 0:00:12]} 39. Rd4 {[%emt 0:00:27]} Qc3+ {[%emt 0:00:09]} 40. Ke2 {[%emt 0:00:12]} Kh7 {[%emt 0:00:36]} 41. Kf1 {[%emt 0:00:26]} Kg6 {[%emt 0:00:20]} 42. Kg2 {[%emt 0:00:10]} Kf5 {[%emt 0:00:17]} 43. Rd6 {[%emt 0:00:22]} Qxb4 {[%emt 0:00:41]} 44. Rxb6 {[%emt 0:00:05]} Qe4+ {[%emt 0:00:12]} 45. Kg1 {[%emt 0:00:10]} Kg4 {[%emt 0:00:34]} 46. Kf1 {[%emt 0:00:19]} Qh1+ {[%emt 0:00:12]} 47. Bg1 {[%emt 0:00:09]} Kh3 {[%emt 0:00:14]} 48. Rb2 {[%emt 0:00:15]} Qf3+ {[%emt 0:00:06]} 49. Ke1 {[%emt 0:00:14]} Qc3+ {[%emt 0:00:04]} 50. Rd2 {[%emt 0:00:01]} Kg4 {[%emt 0:00:45]} 51. Ke2 {[%emt 0:00:13]} h5 {[%emt 0:01:29]} 52. Be3 {[%emt 0:00:14]} Qc4+ {[%emt 0:00:12]} 53. Kf2 {[%emt 0:00:04]} Qe4 {[%emt 0:00:19]} 54. Re2 {[%emt 0:00:16]} Qf3+ {[%emt 0:00:27]} 55. Ke1 {[%emt 0:00:00]} h4 {[%emt 0:00:52]} 56. gxh4 {[%emt 0:00:13]} Kxh4 {[%emt 0:00:20]} 57. Bf2+ {[%emt 0:00:06]} Kg4 {[%emt 0:00:07]} 58. Bg3 {[%emt 0:00:03]} Qc3+ {[%emt 0:00:47]} 59. Kf1 {[%emt 0:00:07]} g5 {[%emt 0:01:31]} 60. fxg5 {[%emt 0:00:07]} Kxg5 {[%emt 0:00:10]} 61. Re5+ {[%emt 0:00:06]} Kg4 {[%emt 0:00:36]} (61... f5 $142 62. Kg1 Qd4+ 63. Kg2 Qb2+ 64. Kh3 Qb7) 62. Re4+ {[%emt 0:00:05]} Kf5 {[%emt 0:01:00]} 63. Rf4+ {[%emt 0:00:06]} Kg6 {[%emt 0:00:46]} 64. Rg4+ {[%emt 0:00:12]} Kh6 {[%emt 0:00:29]} 65. Rf4 {[%emt 0:00:06]} f5 {[%emt 0:00:24]} 66. Kg2 {[%emt 0:00:20]} Kg6 {[%emt 0:00:22]} 67. Rf2 {[%emt 0:00:20]} e5 {[%emt 0:00:13]} 68. h4 {[%emt 0:00:21]} e4 {[%emt 0:00:34]} 69. Bf4 {[%emt 0:00:10]} e3 {[%emt 0:00:46]} (69... Qd3 $142 70. Rf1 e3) 70. Re2 {[%emt 0:00:13]} Qc6+ $2 {[%emt 0:00:31]} (70... Qc4 71. Kf3 Kh5 72. Bxe3 Qg4+ 73. Kf2 Qxh4+ 74. Kg1 Qg3+ 75. Kf1 f4) 71. Kg3 {[%emt 0:00:09] [#]} Kh5 {[%emt 0:00:33]} (71... Qh1 $1 $19 {[%cal Rh1f1] and Black stays clearly on top.} 72. Rh2 Qe1+ 73. Kf3 Kh5 74. Bxe3 Qd1+ 75. Re2 Kxh4) 72. Rxe3 {[%emt 0:00:11]} Qg6+ {[%emt 0:00:09]} 73. Bg5 {[%emt 0:00:14]} Qd6+ {[%emt 0:00:44]} 74. Bf4 {[%emt 0:00:05]} Qd1 {[%emt 0:00:21]} 75. Kf2 $2 {[%emt 0:00:24]} (75. Bg5 $17) 75... Kg4 {[%emt 0:00:31]} 76. Bg5 {[%emt 0:00:13]} f4 {[%emt 0:00:19]} 77. Bxf4 {[%emt 0:00:09]} Kxf4 {[%emt 0:00:10]} 78. h5 {[%emt 0:00:10]} Qxh5 {[%emt 0:00:11]} 79. Rc3 {[%emt 0:00:12]} Qh2+ {[%emt 0:00:32]} 80. Ke1 {[%emt 0:00:02]} Qb2 {[%emt 0:00:24]} (80... Ke4 $142 81. Kd1 Qb2 82. Rh3 Qb1+ 83. Kd2 Qa2+ 84. Kd1 Qe6 85. Rc3 Qd5+ 86. Kc1 Kd4 87. Rc2 Qa5 88. Kb1 Kd3 89. Rc1 Qa4 90. Kb2 Qb4+ 91. Ka2 Kd2 92. Rb1 Qa4+ 93. Kb2 Qc2+ 94. Ka1 Qe4 95. Ka2 Kc2 96. Rb2+ Kc1 97. Ka3 Qa8+ 98. Kb3 Qd5+ 99. Ka3 Qa5+ 100. Kb3 Qb5+ 101. Kc3 Qxb2+ 102. Kc4 Qe5 103. Kd3 Kd1 104. Kc4 Kc2 105. Kb4 Qd5 106. Ka4 Kc3 107. Ka3 Qb3#) 81. Rd3 {[%emt 0:00:08]} Ke4 {[%emt 0:00:42]} 82. Rd2 {[%emt 0:00:03]} Qc1+ {[%emt 0:00:26]} 83. Ke2 {[%emt 0:00:03]} Qg1 {[%emt 0:00:14]} 84. Rc2 {[%emt 0:00:07]} Qe3+ {[%emt 0:00:30]} 85. Kd1 {[%emt 0:00:02]} Qf3+ {[%emt 0:00:24]} 86. Kd2 {[%emt 0:00:08]} Kd4 {[%emt 0:00:07]} 87. Kc1 {[%emt 0:00:05]} Kd3 {[%emt 0:00:40]} 88. Kb2 {[%emt 0:00:02]} Qb7+ {[%emt 0:00:26]} 89. Kc1 {[%emt 0:00:02]} Qb4 {[%emt 0:00:21]} 90. Rg2 {[%emt 0:00:50]} Qc3+ {[%emt 0:01:06]} 91. Kb1 {[%emt 0:00:05]} Qe1+ {[%emt 0:00:10]} 92. Kb2 {[%emt 0:00:06]} Qe5+ {[%emt 0:00:11]} 93. Ka3 {[%emt 0:00:25]} Qe7+ {[%emt 0:00:26]} 94. Ka2 {[%emt 0:00:18]} Qf7+ {[%emt 0:00:17]} 95. Ka3 {[%emt 0:00:14]} Qa7+ {[%emt 0:00:09]} 96. Kb2 {[%emt 0:00:11]} Qb7+ {[%emt 0:00:03]} 0-1

[Event "8th Gibraltar U16-Junior 2018"]
[Site "Caleta"]
[Date "2018.08.20"]
[Round "6"]
[White "Onslow, Alfie"]
[Black "Silva, Pedro Gil Ferreira "]
[Result "1-0"]
[ECO "B12"]
[WhiteElo "2040"]
[BlackElo "1795"]
[Annotator "NA RC"]
[PlyCount "59"]
[EventDate "2018.08.17"]
[EventType "swiss"]
[EventCountry "GGB"]
[SourceTitle "playchess.com"]
[Source "ChessBase"]
[SourceQuality "1"]
[TimeControl "6600+10"]

{[%evp 9,59,18,8,0,10,17,18,3,28,38,39,18,19,0,0,-13,-27,-10,-4,-56,-16,-20,-12,-13,-10,-21,-21,-20,-24,-28,-26,-29,-11,0,-11,-15,-11,-26,-29,-29,48,54,32767,144,169,169,566,604,1024,1052,1266,1396]} 1. e4 {[%emt 0:00:16]} c6 {[%emt 0:00:04]} 2. d4 {[%emt 0:00:50]} d5 {[%emt 0:00:16]} 3. e5 {[%emt 0:00:13]} c5 {[%emt 0:00:18]} 4. dxc5 {[%emt 0:00:13]} Nc6 {[%emt 0:00:14]} 5. a3 {[%emt 0:02:43] B12: Caro-Kann: Advance Variation} Nxe5 {[%emt 0:05:20]} 6. Bb5+ {[%emt 0:03:30]} (6. b4 Nf6 7. Bb2 Nc6 8. Nf3 g6 9. Nc3 d4 10. Nb5 e5 11. Qe2 Bg4 12. O-O-O Bh6+ {1-0 (48) Nepomniachtchi,I (2751)-Navara,D (2737) Saint Louis 2017}) 6... Nc6 {[%emt 0:02:37] LiveBook: 9 Games} 7. c4 $146 {[%emt 0:04:39]} ({Predecessor:} 7. b4 Nf6 8. Bb2 g6 9. c4 Be6 10. Nf3 Bg7 11. Ng5 O-O 12. Nxe6 fxe6 {1-0 (50) Dubov,D (2648)-Yuffa,D (2534) Sochi 2016}) 7... e6 {[%emt 0:11:50]} 8. Be3 {[%emt 0:09:17]} Be7 {[%emt 0:13:29]} 9. Nc3 {[%emt 0:05:02]} Nf6 {[%emt 0:04:28]} 10. Nf3 {[%emt 0:05:39]} O-O {[%emt 0:05:36]} 11. h3 {[%emt 0:06:57]} a6 {[%emt 0:05:47]} 12. cxd5 {[%emt 0:08:49]} axb5 {[%emt 0:04:42]} 13. dxc6 {[%emt 0:00:06]} bxc6 {[%emt 0:00:05]} 14. Ne5 {[%emt 0:23:25]} Bb7 {[%emt 0:02:40]} 15. O-O {[%emt 0:04:38]} Nd5 {[%emt 0:03:31]} 16. Nxd5 {[%emt 0:02:51]} Qxd5 {[%emt 0:06:10]} 17. Nf3 {[%emt 0:12:01]} Rfd8 {[%emt 0:03:39]} 18. Qc2 {[%emt 0:02:31]} Qd3 {[%emt 0:03:26]} 19. Qxd3 {[%emt 0:01:13]} Rxd3 {[%emt 0:00:04]} 20. Rfd1 {[%emt 0:00:14]} Rd5 {[%emt 0:03:00]} 21. Rxd5 {[%emt 0:04:31]} exd5 {[%emt 0:00:07]} 22. Bd4 {[%emt 0:00:47]} f6 {[%emt 0:01:03]} 23. b3 {[%emt 0:01:50]} Bc8 {[%emt 0:02:36]} 24. Nd2 {[%emt 0:05:46]} b4 {[%emt 0:02:13]} (24... Kf7 $11) 25. axb4 {[%emt 0:00:28]} Rb8 {[%emt 0:00:58]} 26. Bc3 {[%emt 0:01:12]} Kf7 {[%emt 0:07:45]} 27. Nf3 {[%emt 0:00:10]} f5 $2 {[%emt 0:01:37]} (27... Rb7 {is tougher.} 28. Bd2 Rc7) 28. Ne5+ {[%emt 0:00:11]} Kg8 {[%emt 0:00:29]} 29. Nxc6 {[%emt 0:00:03]} Rb7 {[%emt 0:00:14]} 30. Ra8 $18 {[%emt 0:00:03]} 1-0

[Event "8th Gibraltar U16-Junior 2018"]
[Site "Caleta"]
[Date "2018.08.20"]
[Round "6"]
[White "Perez Beltran, Salvador"]
[Black "Moreby, James"]
[Result "1/2-1/2"]
[ECO "B40"]
[WhiteElo "2018"]
[BlackElo "2084"]
[Annotator "NA RC"]
[PlyCount "39"]
[EventDate "2018.08.17"]
[EventType "swiss"]
[EventCountry "GGB"]
[SourceTitle "playchess.com"]
[Source "ChessBase"]
[SourceQuality "1"]
[TimeControl "6600+10"]

{[%evp 10,38,22,7,14,20,2,25,31,33,35,29,41,23,36,29,43,26,38,31,32,32,57,38,57,22,50,53,68,91,108]} 1. e4 {[%emt 0:00:00]} c5 {[%emt 0:00:16]} 2. Nf3 {[%emt 0:00:00]} e6 {[%emt 0:00:07]} 3. g3 {[%emt 0:00:00]} Nc6 {[%emt 0:00:06]} 4. Bg2 {[%emt 0:00:07]} Nf6 {[%emt 0:00:06]} 5. Qe2 {[%emt 0:00:08] B40: Sicilian: 2...e6, Unusual lines} (5. d3 d5 6. Nbd2 Be7 7. O-O O-O 8. Re1 b5 9. e5 Nd7 10. Nf1 Bb7 11. h4 Qc7 12. Bf4 Rfc8 13. Ne3 Qd8 14. Ng4 Bf8 15. Bg5 Qe8 16. c3 h6 17. Bf4 a5 18. Qd2 b4 19. c4 Ne7 20. h5 {1-0 (59) Kuzubov,Y (2699)-Grischuk,A (2772) Riadh 2017}) 5... d5 {[%emt 0:02:23]} 6. exd5 {[%emt 0:00:06]} Nxd5 {[%emt 0:00:07]} 7. O-O {[%emt 0:00:20]} Be7 {[%emt 0:00:16]} 8. Rd1 {[%emt 0:01:04]} Bf6 {[%emt 0:03:46]} 9. Nc3 {[%emt 0:00:50]} O-O {[%emt 0:00:38] LiveBook: 25 Games} 10. Ne4 {[%emt 0:05:21]} Be7 {[%emt 0:01:19]} 11. d4 {[%emt 0:01:28]} cxd4 {[%emt 0:04:54]} 12. Nxd4 {[%emt 0:00:44]} Nxd4 {[%emt 0:00:25]} 13. Rxd4 {[%emt 0:00:11]} Nf4 $146 {[%emt 0:00:51]} 14. Nf6+ $1 {[%emt 0:27:04]} Bxf6 {[%emt 0:00:02]} 15. Rxf4 {[%emt 0:00:01]} Qe7 {[%emt 0:02:24]} 16. c3 {[%emt 0:08:27]} Rb8 {[%emt 0:08:27]} 17. Re4 {[%emt 0:25:00]} b5 {[%emt 0:15:15]} 18. Bf4 {[%emt 0:01:40]} Rb6 {[%emt 0:00:51]} 19. Rb4 {[%emt 0:13:44]} a5 $16 {[%emt 0:26:29]} 20. Rb3 {[%emt 0:17:10]} 1/2-1/2

[Event "8th Gibraltar U16-Junior 2018"]
[Site "Caleta"]
[Date "2018.08.20"]
[Round "6"]
[White "Tombolis, Christopher"]
[Black "Greco, Joseph"]
[Result "1-0"]
[ECO "A56"]
[WhiteElo "1900"]
[BlackElo "1626"]
[Annotator "NA RC"]
[PlyCount "35"]
[EventDate "2018.08.17"]
[EventType "swiss"]
[EventCountry "GGB"]
[SourceTitle "playchess.com"]
[Source "ChessBase"]
[SourceQuality "1"]
[TimeControl "6600+10"]

{[%evp 11,35,85,96,64,73,56,87,84,94,75,141,156,139,136,169,141,210,89,165,159,254,142,195,196,270,228]} 1. d4 {[%emt 0:00:00]} Nf6 {[%emt 0:00:00]} 2. c4 {[%emt 0:00:00]} c5 {[%emt 0:00:08]} 3. d5 {[%emt 0:00:04]} e5 {[%emt 0:00:08]} 4. Nc3 {[%emt 0:00:17]} d6 {[%emt 0:00:17]} 5. e4 {[%emt 0:00:25]} Be7 {[%emt 0:00:16]} 6. h3 {[%emt 0:02:43]} h6 {[%emt 0:01:29]} 7. Nf3 {[%emt 0:03:35]} O-O {[%emt 0:01:26]} 8. Be2 {[%emt 0:00:39]} Na6 {[%emt 0:04:32]} 9. O-O {[%emt 0:01:06]} Bd7 {[%emt 0:02:15]} 10. Nh2 {[%emt 0:02:28]} Qc8 {[%emt 0:03:15]} 11. f4 {[%emt 0:01:21]} exf4 {[%emt 0:18:55]} 12. Bxf4 {[%emt 0:00:12]} Nc7 {[%emt 0:13:22]} 13. Bd3 {[%emt 0:07:34]} Nfe8 {[%emt 0:09:01]} (13... b5 $16) 14. g4 {[%emt 0:09:17]} (14. Nf3 $18 {has better winning chances.}) 14... Qd8 {[%emt 0:03:41]} (14... b5 $16) 15. Qe2 {[%emt 0:08:08]} g5 {[%emt 0:02:00]} (15... Bg5 {might work better.} 16. e5 Bxf4 17. Rxf4 dxe5) 16. Bxd6 {[%emt 0:02:36]} (16. e5 $18 dxe5 17. Bxe5) 16... Bxd6 $18 {[%emt 0:02:01]} (16... Nxd6 $16 {was worth a try.} 17. e5 b5) 17. e5 {[%emt 0:00:01]} Bxe5 {[%emt 0:00:28]} 18. Qxe5 {[%emt 0:00:32]} 1-0

[Event "8th Gibraltar U16-Junior 2018"]
[Site "Caleta"]
[Date "2018.08.20"]
[Round "6"]
[White "Howell, Oliver W"]
[Black "Schulz, Victor"]
[Result "1/2-1/2"]
[ECO "A08"]
[WhiteElo "1853"]
[BlackElo "1510"]
[Annotator "NA RC"]
[PlyCount "93"]
[EventDate "2018.08.17"]
[EventType "swiss"]
[EventCountry "GGB"]
[SourceTitle "playchess.com"]
[Source "ChessBase"]
[SourceQuality "1"]
[TimeControl "6600+10"]

{[%evp 8,54,-29,-18,-20,-35,5,-12,-4,-37,47,54,60,81,64,0,20,-18,-12,-103,-2,-5,4,-2,15,0,6,0,0,0,32767,-273,-308,-329,-229,-212,-181,-141,-168,-537,-558,-29993,-76,-37,-22,-18,-91,-101,0]} 1. Nf3 {[%emt 0:00:00]} d5 {[%emt 0:00:00]} 2. c4 {[%emt 0:00:02]} d4 {[%emt 0:00:06]} 3. g3 {[%emt 0:00:42]} c5 {[%emt 0:01:33]} 4. Bg2 {[%emt 0:01:44]} Nc6 {[%emt 0:01:38]} 5. d3 {[%emt 0:00:44]} e5 {[%emt 0:01:04] LiveBook: 116 Games} 6. O-O {[%emt 0:00:32]} f5 {[%emt 0:01:13]} 7. Na3 {[%emt 0:06:11]} Nf6 {[%emt 0:04:20]} 8. Nc2 {[%emt 0:04:13]} e4 $146 {[%emt 0:05:04] A08: King's Indian Attack} ({Predecessor:} 8... Bd6 $11 9. a3 O-O 10. Rb1 a5 11. e3 Qb6 12. exd4 exd4 13. Na1 Bd7 14. Re1 Rae8 15. Bg5 Rxe1+ 16. Qxe1 h6 17. Bxf6 Rxf6 18. Qd2 Re6 19. Nh4 Re8 20. Bh3 Rf8 21. f4 Qd8 22. Nf3 {½-½ (22) Rohde,P (1538)-Radssat,M (1464) Neumuenster 2008}) 9. Nd2 {[%emt 0:16:08]} exd3 {[%emt 0:05:30]} 10. exd3 {[%emt 0:01:02]} Be7 {[%emt 0:01:08]} 11. Bxc6+ {[%emt 0:08:12]} (11. b4 $16) 11... bxc6 {[%emt 0:00:01]} 12. Nf3 {[%emt 0:01:40]} O-O {[%emt 0:01:55]} 13. b4 {[%emt 0:09:56] [#]} (13. Nh4 $11 {keeps the balance.}) 13... cxb4 {[%emt 0:05:36]} ({Black should try} 13... f4 $1 $17 14. Ne5 (14. Bxf4 Nh5 $17) 14... fxg3 15. hxg3 Bd6 16. Nxc6 Qb6) 14. Ncxd4 {[%emt 0:00:42]} c5 {[%emt 0:17:21]} 15. Nc6 {[%emt 0:00:44]} Qc7 {[%emt 0:00:01]} 16. Nxe7+ {[%emt 0:01:21]} Qxe7 {[%emt 0:00:06]} 17. Bf4 {[%emt 0:04:54]} Bb7 {[%emt 0:03:18]} 18. Re1 {[%emt 0:05:26]} Qd7 {[%emt 0:00:45]} 19. Re5 $2 {[%emt 0:13:24]} (19. Ne5 $11 Qd4 20. Nf3) 19... Qc6 {[%emt 0:00:45]} 20. Kg2 {[%emt 0:10:55]} Ng4 {[%emt 0:13:28]} 21. Re7 {[%emt 0:01:54]} Rac8 {[%emt 0:04:49]} 22. a3 {[%emt 0:05:04] [#]} Rfe8 $1 {[%emt 0:02:36]} 23. Rxe8+ $2 {[%emt 0:01:09]} (23. Rxb7 {nothing else works.} Qxb7 24. axb4) 23... Rxe8 {[%emt 0:00:06]} 24. h3 {[%emt 0:00:49] [#]} Ne5 $2 {[%emt 0:02:53]} (24... Re1 $1 {[%mdl 512] mates} 25. d4 (25. Qxe1 Qxf3+) 25... Rxd1 26. d5 {[#]} Rxd5 $1 {[%mdl 512]} 27. axb4 Rd2 $1 {[%mdl 512]} 28. Ra3 Qxf3+ $1 {[%mdl 512]} 29. Rxf3 Bxf3+ 30. Kxf3 Rxf2#) 25. Bxe5 {[%emt 0:00:36]} Rxe5 {[%emt 0:00:05]} 26. axb4 {[%emt 0:00:39]} cxb4 {[%emt 0:05:30]} 27. Rxa7 {[%emt 0:01:39] [#]} b3 $11 {[%emt 0:17:39]} ({Besser ist} 27... f4 $1 $17 {[%mdl 512]} 28. gxf4 Re7 29. Rxb7 Rxb7) 28. Ra1 {[%emt 0:07:18]} g5 {[%emt 0:06:33]} 29. d4 {[%emt 0:01:20]} b2 {[%emt 0:00:59]} 30. Rb1 {[%emt 0:01:06]} Ra5 {[%emt 0:03:19]} 31. g4 {[%emt 0:00:57]} Ra1 {[%emt 0:00:42]} 32. d5 {[%emt 0:00:29]} Rxb1 {[%emt 0:01:01]} 33. Qxb1 {[%emt 0:00:35]} Qxc4 {[%emt 0:00:08]} 34. Qxb2 {[%emt 0:01:36]} Qxd5 {[%emt 0:00:10]} 35. Qe2 {[%emt 0:00:13]} Qxf3+ {[%emt 0:00:56]} 36. Qxf3 {[%emt 0:00:01]} Bxf3+ 37. Kxf3 {[%emt 0:00:01]} f4 {[%emt 0:00:45]} 38. h4 {[%emt 0:01:27]} gxh4 {[%emt 0:01:38]} 39. Kxf4 {[%emt 0:00:12]} Kg7 {[%emt 0:00:05]} 40. g5 {[%emt 0:00:44]} Kg6 {[%emt 0:00:01]} 41. Kg4 {[%emt 0:00:13]} h3 {[%emt 0:00:01]} 42. Kxh3 {[%emt 0:00:06]} Kxg5 {[%emt 0:00:00]} 43. Kg3 {[%emt 0:00:06]} Kf5 {[%emt 0:00:07]} 44. Kh4 {[%emt 0:00:14]} Kf4 {[%emt 0:00:02]} 45. Kh5 {[%emt 0:00:01]} Kf3 {[%emt 0:00:00]} 46. Kh6 {[%emt 0:00:01]} Kxf2 {[%emt 0:00:01]} 47. Kxh7 {[%emt 0:00:01]} 1/2-1/2

[Event "8th Gibraltar U16-Junior 2018"]
[Site "Caleta"]
[Date "2018.08.20"]
[Round "6"]
[White "Samworth-Calvier, Juju"]
[Black "Jain, Anushree"]
[Result "1-0"]
[ECO "C77"]
[WhiteElo "1816"]
[BlackElo "1006"]
[Annotator "NA RC"]
[PlyCount "81"]
[EventDate "2018.08.17"]
[EventType "swiss"]
[EventCountry "GGB"]
[SourceTitle "playchess.com"]
[Source "ChessBase"]
[SourceQuality "1"]
[TimeControl "6600+10"]

{[%evp 12,81,54,25,25,22,22,30,29,16,43,18,37,34,86,51,129,107,136,135,137,139,166,134,143,133,303,307,302,309,302,300,330,345,472,458,508,516,532,543,692,725,1251,1566,1787,1986,2010,2133,29992,29988,29994,29992,29992,5585,29989,5414,29985,29986,29983,29985,6303,29987,29989,29989,29989,29990,29990,29991,29992,29992,29998,29999]} 1. e4 {[%emt 0:00:00]} e5 {[%emt 0:00:00]} 2. Nf3 {[%emt 0:00:00]} Nc6 {[%emt 0:00:10]} 3. Bb5 {[%emt 0:00:00]} d6 {[%emt 0:00:14]} 4. O-O {[%emt 0:00:09]} Bd7 {[%emt 0:00:42]} 5. c3 {[%emt 0:00:20]} g6 {[%emt 0:00:34]} 6. d3 {[%emt 0:00:41]} Bg7 {[%emt 0:01:04]} 7. Re1 {[%emt 0:00:35]} Nf6 {[%emt 0:00:53]} 8. Nbd2 {[%emt 0:00:44]} O-O {[%emt 0:00:52]} 9. Nf1 {[%emt 0:01:01]} a6 {[%emt 0:02:34] LiveBook: 6 Games} 10. Ba4 {[%emt 0:00:04]} Qe7 {[%emt 0:00:56] C77: Ruy Lopez: 3...a6 4 Ba4 Nf6, unusual lines} (10... Re8 11. Ng3 Qe7 12. h3 Qf8 13. d4 Kh8 14. Bb3 h6 15. a3 Rad8 16. Qd3 Nh7 17. Bd2 Bc8 18. Rad1 {0-1 (45) Haddouche,M (2505)-Sargissian,G (2672) Riadh 2017}) 11. Bg5 {[%emt 0:02:00]} b5 $146 {[%emt 0:02:21]} ({Predecessor:} 11... h6) 12. Bc2 {[%emt 0:00:07]} Qe6 {[%emt 0:02:09]} 13. Qd2 {[%emt 0:02:03]} d5 {[%emt 0:02:09]} ({Black should try} 13... Rfb8 $14) 14. Bxf6 {[%emt 0:07:04]} Qxf6 {[%emt 0:03:43]} 15. exd5 {[%emt 0:00:14]} Ne7 {[%emt 0:01:39]} 16. Nxe5 {[%emt 0:00:10]} Bf5 {[%emt 0:02:22]} 17. d4 {[%emt 0:03:13]} Bxc2 {[%emt 0:03:04]} 18. Qxc2 {[%emt 0:00:07]} Nxd5 $2 {[%emt 0:00:41]} (18... Rfd8 $16 19. Ne3 Qd6) 19. Nd7 {[%emt 0:00:06]} Qd6 {[%emt 0:02:34]} 20. Nxf8 {[%emt 0:00:14]} Rxf8 {[%emt 0:01:14]} 21. Ne3 {[%emt 0:00:43]} Nf6 {[%emt 0:02:44]} 22. a4 {[%emt 0:01:01]} bxa4 {[%emt 0:04:23]} (22... Rb8 $142 23. axb5 axb5) 23. Qxa4 {[%emt 0:00:07]} Ra8 {[%emt 0:00:33]} 24. Nc4 {[%emt 0:00:48]} Qd8 {[%emt 0:02:45]} 25. Qc6 {[%emt 0:00:19]} Qc8 {[%emt 0:02:14]} 26. Re7 {[%emt 0:00:20]} Ne8 {[%emt 0:02:13]} 27. Qd5 {[%emt 0:01:12]} h5 {[%emt 0:07:04]} 28. Qxf7+ {[%emt 0:00:20]} Kh7 {[%emt 0:02:46]} 29. Rae1 {[%emt 0:01:00]} Kh6 {[%emt 0:03:30]} 30. Rxe8 {[%emt 0:00:28]} Qb7 {[%emt 0:00:54]} 31. Rxa8 {[%emt 0:00:08]} Qxa8 {[%emt 0:00:05]} 32. Qxc7 {[%emt 0:00:06]} (32. Ne5 $142 Bxe5 33. Rxe5 Qh8 34. Qf4+ Kh7 35. Re7+ Qg7 36. Qxc7 Qxe7 37. Qxe7+ Kh6 38. f4) 32... Qf8 {[%emt 0:00:27]} 33. d5 {[%emt 0:00:39]} (33. Nd6 $142 Bf6 34. Re8 Qg7 35. Nf7+ Kh7 36. Rh8+ Qxh8 37. Nxh8+ Kxh8 38. Qf7) 33... Bf6 {[%emt 0:01:08]} 34. d6 {[%emt 0:01:34]} Bd8 {[%emt 0:01:29]} 35. Qc6 {[%emt 0:00:09]} a5 {[%emt 0:00:36]} 36. g3 {[%emt 0:00:49]} Kg5 {[%emt 0:00:20]} 37. Re5+ {[%emt 0:00:40]} Kh6 {[%emt 0:00:20]} 38. Re8 {[%emt 0:00:31]} Qf6 {[%emt 0:00:27]} 39. Qc8 {[%emt 0:00:36]} a4 {[%emt 0:00:29]} 40. Qxd8 {[%emt 0:00:10]} a3 {[%emt 0:00:27]} 41. Qxf6 {[%emt 0:00:13]} 1-0